fUSD/lending_fUSD_20240105
["ID","MTS","AMOUNT","RATE_DAILY","PERIOD"]
[310297456,1704463959828,-509.33,0.0003315,3]
[310297457,1704463959838,-625.64,0.0003315,3]
[310297458,1704463959849,-440.98641361,0.0003315,3]
[310297459,1704463959858,-1093.85,0.0003315,3]
[310297460,1704463959868,-500.0,0.0003315,3]
[310297461,1704463959878,-1229.71,0.0003315,3]
[310297462,1704463959888,-528.93,0.0003315,3]
[310297463,1704463959897,-500.0,0.0003315,3]
[310297464,1704463959906,-413.95921824,0.0003315,3]
[310297465,1704463959916,-500.0,0.0003315,3]
[310297466,1704463959925,-500.0,0.0003315,3]
[310297467,1704463959935,-696.27,0.0003315,3]
[310297468,1704463959944,-500.0,0.0003315,3]
[310297469,1704463959953,-1228.93,0.0003315,3]
[310297470,1704463959963,-500.0,0.0003315,3]
[310297471,1704463959973,-1479.47,0.0003315,3]
[310297472,1704463959982,-906.38,0.0003315,3]
[310297473,1704463959992,-500.0,0.0003315,3]
[310297474,1704463960002,-1060.36,0.0003315,3]
[310297475,1704463960012,-1559.68,0.0003315,3]
[310297476,1704463960022,-500.0,0.0003315,3]
[310297477,1704463960032,-1024.05,0.0003315,3]
[310297478,1704463960041,-535.98,0.0003315,3]
[310297479,1704463960052,-20552.87,0.0003315,3]
[310297480,1704463960062,-732.24,0.0003315,3]
[310297481,1704463960072,-764.89,0.0003315,3]
[310297482,1704463960083,-1384.47,0.0003315,3]
[310297483,1704463960094,-2343.7,0.0003315,3]
[310297484,1704463960104,-500.0,0.0003315,3]
[310297485,1704463960114,-855.82,0.0003315,3]
[310297486,1704463960123,-1443.03,0.0003315,3]
[310297487,1704463960133,-1467.75,0.0003315,3]
[310297488,1704463960143,-2427.76,0.0003315,3]
[310297489,1704463960152,-500.0,0.0003315,3]
[310297490,1704463960161,-500.0,0.0003315,3]
[310297491,1704463960171,-1262.81,0.0003315,3]
[310297492,1704463960181,-976.69,0.0003315,3]
[310297493,1704463960191,-1404.49,0.0003315,3]
[310297494,1704463960201,-963.68,0.0003315,3]
[310297495,1704463960211,-502.15,0.0003315,3]
[310297496,1704463960220,-1710.42,0.0003315,3]
[310297497,1704463960230,-1043.98,0.0003315,3]
[310297498,1704463960240,-500.0,0.0003315,3]
[310297499,1704463960249,-827.77,0.0003315,3]
[310297500,1704463960259,-500.0,0.0003315,3]
[310297501,1704463960268,-670.86,0.0003315,3]
[310297502,1704463960278,-552.27,0.0003315,3]
[310297503,1704463960287,-2031.67,0.0003315,3]
[310297504,1704463960297,-519.01560929,0.0003315,3]
[310297505,1704463960308,-593.61,0.0003315,3]
[310297506,1704463960318,-737.13,0.0003315,3]
[310297507,1704463960328,-7439.39,0.0003315,3]
[310297508,1704463960342,-973.07,0.0003315,3]
[310297509,1704463960352,-563.27,0.0003315,3]
[310297510,1704463960361,-585.98,0.0003315,3]
[310297511,1704463960371,-500.0,0.0003315,3]
[310297512,1704463960381,-500.0,0.0003315,3]
[310297513,1704463960391,-878.72,0.0003315,3]
[310297514,1704463960401,-1022.6,0.0003315,3]
[310297515,1704463960412,-500.0,0.0003315,3]
[310297516,1704463960422,-1959.09,0.0003315,3]
[310297517,1704463960432,-11053.17,0.0003315,3]
[310297518,1704463960441,-732.57,0.0003315,3]
[310297519,1704463960451,-757.66,0.0003315,3]
[310297520,1704463960461,-500.0,0.0003315,3]
[310297521,1704463960470,-511.54,0.0003315,3]
[310297522,1704463960480,-1241.64,0.0003315,3]
[310297523,1704463960490,-3419.36,0.0003315,3]
[310297524,1704463960500,-1092.45,0.0003315,3]
[310297525,1704463960509,-2084.07,0.0003315,3]
[310297526,1704463960519,-558.28,0.0003315,3]
[310297527,1704463960528,-500.0,0.0003315,3]
[310297528,1704463960538,-1946.6,0.0003315,3]
[310297529,1704463960547,-348.88776945,0.0003315,3]
[310297530,1704463960557,-500.0,0.0003315,3]
[310297531,1704463960566,-1013.42,0.0003315,3]
[310297532,1704463960575,-500.0,0.0003315,3]
[310297533,1704463960588,-401.83156525,0.0003315,3]
[310297534,1704463960599,-1212.22,0.0003315,3]
[310297535,1704463960608,-2289.25,0.0003315,3]
[310297536,1704463960618,-2361.2,0.0003315,3]
[310297537,1704463960627,-500.0,0.0003315,3]
[310297538,1704463960637,-500.0,0.0003315,3]
[310297539,1704463960647,-1128.19,0.0003315,3]
[310297540,1704463960662,-702.4,0.0003315,3]
[310297541,1704463960671,-764.39,0.0003315,3]
[310297542,1704463960680,-500.0,0.0003315,3]
[310297543,1704463960690,-517.07,0.0003315,3]
[310297544,1704463960700,-1542.41,0.0003315,3]
[310297545,1704463960709,-1440.35,0.0003315,3]
[310297546,1704463960719,-500.0,0.0003315,3]
[310297547,1704463960728,-500.0,0.0003315,3]
[310297548,1704463960738,-715.0,0.0003315,3]
[310297549,1704463960747,-500.0,0.0003315,3]
[310297550,1704463960756,-2358.36,0.0003315,3]
[310297551,1704463960766,-1017.07,0.0003315,3]
[310297552,1704463960777,-500.0,0.0003315,3]
[310297553,1704463960787,-5040.24,0.0003315,3]
[310297554,1704463960796,-1054.48,0.0003315,3]
[310297555,1704463960805,-500.0,0.0003315,3]
[310297556,1704463960815,-500.0,0.0003315,3]
[310297557,1704463960824,-915.19,0.0003315,3]
[310297558,1704463960835,-8316.18,0.0003315,3]
[310297559,1704463960844,-1182.97,0.0003315,3]
[310297560,1704463960854,-5436.81,0.0003315,3]
[310297561,1704463960864,-483.01672275,0.0003315,3]
[310297562,1704463960873,-826.79,0.0003315,3]
[310297563,1704463960882,-709.6,0.0003315,3]
[310297564,1704463960892,-184.0,0.000333,22]
[310297565,1704463960901,-173.17,0.00033343,2]
[310297566,1704463960910,-318.94407424,0.00033343,3]
[310297567,1704463960920,-1444.79,0.00033343,3]
[310297568,1704463960929,-947.41,0.00033343,3]
[310297569,1704463960938,-2917.19,0.00033343,3]
[310297570,1704463960948,-1039.42,0.00033343,3]
[310297571,1704463960957,-500.0,0.00033343,3]
[310297572,1704463960967,-588.09,0.00033343,3]
[310297573,1704463960976,-984.84,0.00033343,3]
[310297574,1704463960986,-1577.2,0.00033343,3]
[310297575,1704463960996,-1004.25,0.00033343,3]
[310297576,1704463961004,-613.1459372,0.00033343,3]
[310297577,1704463961014,-500.0,0.00033343,3]
[310297578,1704463961024,-941.19,0.00033343,3]
[310297579,1704463961034,-500.0,0.00033343,3]
[310297580,1704463961043,-500.0,0.00033343,3]
[310297581,1704463961052,-587.5,0.00033343,3]
[310297582,1704463961062,-684.69,0.00033343,3]
[310297583,1704463961163,-500.0,0.00033343,3]
[310297584,1704463961173,-500.0,0.00033343,3]
[310297585,1704463961182,-502.66,0.00033343,3]
[310297586,1704463961192,-1249.93,0.00033343,3]
[310297587,1704463961201,-700.39,0.00033343,3]
[310297588,1704463961211,-960.04,0.00033343,3]
[310297589,1704463961220,-500.0,0.00033343,3]
[310297590,1704463961229,-537.41,0.00033343,3]
[310297591,1704463961239,-667.92,0.00033343,3]
[310297592,1704463961249,-510.05,0.00033343,3]
[310297593,1704463961258,-978.16,0.00033343,3]
[310297594,1704463961267,-500.0,0.00033343,3]
[310297595,1704463961276,-945.97,0.00033343,3]
[310297596,1704463961285,-1019.98,0.00033343,3]
[310297597,1704463961296,-500.0,0.00033343,3]
[310297598,1704463961305,-803.57,0.00033343,3]
[310297599,1704463961314,-889.76,0.00033343,3]
[310297600,1704463961323,-610.92,0.00033343,3]
[310297601,1704463961334,-605.09,0.00033343,3]
[310297602,1704463961343,-500.0,0.00033343,3]
[310297603,1704463961351,-571.57,0.00033343,3]
[310297604,1704463961361,-500.0,0.00033343,3]
[310297605,1704463961370,-500.0,0.00033343,3]
[310297606,1704463961379,-241.80577444,0.00033343,3]
[310297607,1704463961388,-253.75884739,0.00033343,3]
[310297608,1704463961397,-500.0,0.00033424,3]
[310297609,1704463961407,-500.0,0.00033424,3]
[310297610,1704463961416,-578.99,0.00033424,3]
[310297611,1704463961426,-570.77,0.00033424,3]
[310297612,1704463961435,-500.0,0.00033424,3]
[310297613,1704463961445,-500.0,0.00033424,3]
[310297614,1704463961454,-581.3344184,0.00033424,3]
[310297615,1704463961464,-523.42488694,0.00033424,3]
[310297616,1704463961474,-500.0,0.00033424,3]
[310297617,1704463961483,-964.18,0.00033424,3]
[310297618,1704463961493,-500.0,0.00033424,3]
[310297619,1704463961502,-500.0,0.00033424,3]
[310297620,1704463961512,-500.0,0.00033424,3]
[310297621,1704463961521,-500.0,0.00033424,3]
[310297622,1704463961530,-500.0,0.00033424,3]
[310297623,1704463961540,-500.0,0.00033424,3]
[310297624,1704463961550,-500.0,0.00033424,3]
[310297625,1704463961559,-500.0,0.00033424,3]
[310297626,1704463961569,-500.0,0.00033424,3]
[310297627,1704463961578,-500.0,0.00033424,3]
[310297628,1704463961591,-500.0,0.00033424,3]
[310297629,1704463961601,-776.92,0.00033424,3]
[310297630,1704463961610,-500.0,0.00033424,3]
[310297631,1704463961620,-500.0,0.00033424,3]
[310297632,1704463961631,-500.0,0.00033424,3]
[310297633,1704463961641,-500.0,0.00033424,3]
[310297634,1704463961653,-500.0,0.00033424,3]
[310297635,1704463961663,-754.78,0.00033424,3]
[310297636,1704463961673,-608.57,0.00033424,3]
[310297637,1704463961682,-500.0,0.00033424,3]
[310297638,1704463961692,-260.17893957,0.00033424,3]
[310297639,1704463961701,-500.0,0.00033424,3]
[310297640,1704463961710,-500.0,0.00033424,3]
[310297641,1704463961750,-574.49,0.00033424,2]
[310297642,1704463961761,-536.48235409,0.00033424,3]
[310297643,1704463961771,-500.0,0.00033424,3]
[310297644,1704463961782,-597.18,0.00033424,3]
[310297645,1704463961792,-194.00339324,0.00033424,3]
[310297646,1704463961803,-535.87,0.00033424,3]
[310297647,1704463961814,-500.0,0.00033424,3]
[310297648,1704463961825,-500.0,0.00033424,3]
[310297649,1704463961836,-500.0,0.00033424,3]
[310297650,1704463961846,-847.71,0.00033424,3]
[310297651,1704463961855,-500.0,0.00033424,2]
[310297652,1704463961866,-500.0,0.00033424,3]
[310297653,1704463961876,-500.0,0.00033424,3]
[310297654,1704463961886,-939.06,0.00033424,3]
[310297655,1704463961896,-500.0,0.00033424,3]
[310297656,1704463961907,-500.0,0.00033424,3]
[310297657,1704463961918,-500.0,0.00033424,3]
[310297658,1704463961930,-500.0,0.00033424,3]
[310297659,1704463961941,-617.42,0.00033424,3]
[310297660,1704463961951,-500.0,0.00033424,3]
[310297661,1704463961961,-763.35,0.00033424,3]
[310297662,1704463961971,-500.0,0.00033424,3]
[310297663,1704463961983,-581.06,0.00033424,3]
[310297664,1704463961994,-533.25,0.00033424,3]
[310297665,1704463962004,-1032.57,0.00033424,3]
[310297666,1704463962015,-500.0,0.00033424,3]
[310297667,1704463962024,-668.81,0.00033424,3]
[310297668,1704463962034,-897.42,0.00033424,3]
[310297669,1704463962045,-610.9,0.00033424,3]
[310297670,1704463962055,-542.23,0.00033424,3]
[310297671,1704463962065,-500.0,0.00033424,3]
[310297672,1704463962076,-500.0,0.00033424,3]
[310297673,1704463962088,-977.28,0.00033424,3]
[310297674,1704463962098,-500.0,0.00033424,3]
[310297675,1704463962108,-564.72,0.00033424,3]
[310297676,1704463962118,-623.13,0.00033424,3]
[310297677,1704463962128,-500.0,0.00033424,3]
[310297678,1704463962138,-660.13,0.00033424,3]
[310297679,1704463962149,-1107.9,0.00033424,3]
[310297680,1704463962158,-500.0,0.00033424,3]
[310297681,1704463962167,-500.0,0.00033424,3]
[310297682,1704463962178,-500.0,0.00033424,3]
[310297683,1704463962189,-500.0,0.00033424,3]
[310297684,1704463962198,-534.02,0.00033424,3]
[310297685,1704463962207,-500.0,0.00033424,3]
[310297686,1704463962216,-1001.59,0.00033424,3]
[310297687,1704463962227,-500.0,0.00033424,3]
[310297688,1704463962238,-500.0,0.00033424,3]
[310297689,1704463962248,-500.0,0.00033424,3]
[310297690,1704463962258,-351.71107287,0.00033424,3]
[310297691,1704463962269,-577.73,0.00033424,3]
[310297692,1704463962279,-500.0,0.00033424,3]
[310297693,1704463962289,-515.35,0.00033424,3]
[310297694,1704463962299,-500.0,0.00033424,3]
[310297695,1704463962309,-528.01,0.00033424,3]
[310297696,1704463962319,-500.0,0.00033424,3]
[310297697,1704463962331,-609.91,0.00033424,3]
[310297698,1704463962341,-3164.14,0.00033424,3]
[310297699,1704463962352,-500.0,0.00033424,3]
[310297700,1704463962362,-767.51,0.00033424,3]
[310297701,1704463962372,-500.0,0.00033424,3]
[310297702,1704463962382,-572.23,0.00033424,3]
[310297703,1704463962392,-500.0,0.00033424,3]
[310297704,1704463962402,-1043.05,0.00033424,3]
[310297705,1704463962412,-663.96,0.00033424,3]
[310297706,1704463962422,-500.0,0.00033424,3]
[310297707,1704463962433,-969.42,0.00033424,3]
[310297708,1704463962443,-373.5462417,0.00033424,3]
[310297709,1704463962452,-500.0,0.00033424,3]
[310297710,1704463962462,-951.95,0.00033424,3]
[310297711,1704463962471,-500.0,0.00033424,3]
[310297712,1704463962482,-500.0,0.00033424,3]
[310297713,1704463962492,-585.0,0.00033424,3]
[310297714,1704463962503,-795.33,0.00033424,3]
[310297715,1704463962513,-500.0,0.00033424,3]
[310297716,1704463962522,-500.0,0.00033424,3]
[310297717,1704463962532,-535.25,0.00033424,3]
[310297718,1704463962542,-573.11,0.00033424,3]
[310297719,1704463962553,-1278.92,0.00033424,3]
[310297720,1704463962562,-1115.46,0.00033424,3]
[310297721,1704463962572,-500.0,0.00033424,3]
[310297722,1704463962582,-522.9,0.00033424,3]
[310297723,1704463962593,-503.15,0.00033424,3]
[310297724,1704463962602,-500.0,0.00033424,3]
[310297725,1704463962612,-500.0,0.00033424,3]
[310297726,1704463962621,-500.0,0.00033424,3]
[310297727,1704463962632,-898.64,0.00033424,3]
[310297728,1704463962641,-500.0,0.00033424,3]
[310297729,1704463962654,-500.0,0.00033424,3]
[310297730,1704463962663,-2197.46,0.00033424,3]
[310297731,1704463962673,-1050.63,0.00033424,3]
[310297732,1704463962683,-500.0,0.00033424,2]
[310297733,1704463962694,-512.25,0.00033424,3]
[310297734,1704463962705,-500.0,0.00033424,3]
[310297735,1704463962714,-652.42,0.00033424,3]
[310297736,1704463962724,-500.96,0.00033424,3]
[310297737,1704463962733,-500.0,0.00033424,3]
[310297738,1704463962743,-500.0,0.00033424,3]
[310297739,1704463962754,-737.52,0.00033424,3]
[310297740,1704463962764,-500.0,0.00033424,3]
[310297741,1704463962774,-226.55007866,0.00033424,3]
[310297742,1704463962785,-500.0,0.00033424,3]
[310297743,1704463962795,-1408.67,0.00033424,3]
[310297744,1704463962806,-500.0,0.00033424,3]
[310297745,1704463962815,-519.09,0.00033424,3]
[310297746,1704463962826,-500.0,0.00033424,3]
[310297747,1704463962837,-500.0,0.00033424,3]
[310297748,1704463962847,-500.0,0.00033424,3]
[310297749,1704463962857,-500.0,0.00033424,3]
[310297750,1704463962867,-500.0,0.00033424,3]
[310297751,1704463962877,-1017.17,0.00033424,3]
[310297752,1704463962887,-500.0,0.00033424,3]
[310297753,1704463962898,-500.0,0.00033424,3]
[310297754,1704463962908,-1228.15,0.00033424,3]
[310297755,1704463962919,-1193.22,0.00033424,3]
[310297756,1704463962930,-500.0,0.00033424,3]
[310297757,1704463962940,-500.0,0.00033424,3]
[310297758,1704463962952,-1709.82,0.00033424,3]
[310297759,1704463962962,-416.17649895,0.00033424,3]
[310297760,1704463962972,-417.36116754,0.00033424,3]
[310297761,1704463962982,-500.0,0.00033424,3]
[310297762,1704463962993,-521.26,0.00033424,3]
[310297763,1704463963004,-500.0,0.00033424,3]
[310297764,1704463963014,-1009.32,0.00033424,3]
[310297765,1704463963023,-769.11,0.00033424,3]
[310297766,1704463963034,-500.0,0.00033424,3]
[310297767,1704463963044,-952.84,0.00033424,3]
[310297768,1704463963060,-634.11,0.00033424,3]
[310297769,1704463963075,-500.0,0.00033424,3]
[310297770,1704463963084,-1188.9,0.00033424,3]
[310297771,1704463963093,-558.13,0.00033424,3]
[310297772,1704463963102,-773.34,0.00033424,3]
[310297773,1704463963113,-500.0,0.00033424,3]
[310297774,1704463963122,-881.16,0.00033424,3]
[310297775,1704463963131,-500.0,0.00033424,3]
[310297776,1704463963140,-500.0,0.00033424,3]
[310297777,1704463963150,-1431.77,0.00033424,3]
[310297778,1704463963159,-798.14,0.00033424,3]
[310297779,1704463963168,-500.0,0.00033424,3]
[310297780,1704463963178,-2061.68,0.00033424,3]
[310297781,1704463963187,-500.0,0.00033424,3]
[310297782,1704463963198,-909.7,0.00033424,3]
[310297783,1704463963209,-500.0,0.00033424,3]
[310297784,1704463963218,-283.56715638,0.00033424,3]
[310297785,1704463963228,-1481.56,0.00033424,3]
[310297786,1704463963238,-500.0,0.00033424,3]
[310297787,1704463963248,-500.0,0.00033424,3]
[310297788,1704463963259,-1575.41,0.00033424,3]
[310297789,1704463963269,-500.39,0.00033424,3]
[310297790,1704463963280,-982.39,0.00033424,3]
[310297791,1704463963290,-500.0,0.00033424,3]
[310297792,1704463963301,-500.0,0.00033424,3]
[310297793,1704463963312,-616.4,0.00033424,3]
[310297794,1704463963322,-656.28,0.00033424,3]
[310297795,1704463963332,-615.45,0.00033424,3]
[310297796,1704463963341,-815.67,0.00033424,3]
[310297797,1704463963351,-855.97,0.00033424,3]
[310297798,1704463963362,-914.92,0.00033424,3]
[310297799,1704463963372,-759.49,0.00033424,3]
[310297800,1704463963382,-612.52,0.00033424,3]
[310297801,1704463963391,-500.0,0.00033424,3]
[310297802,1704463963400,-638.72,0.00033424,3]
[310297803,1704463963409,-500.0,0.00033424,3]
[310297804,1704463963418,-557.88206565,0.00033424,3]
[310297805,1704463963427,-779.76,0.00033424,3]
[310297806,1704463963437,-1184.83,0.00033424,3]
[310297807,1704463963446,-1087.44,0.00033424,3]
[310297808,1704463963455,-547.36,0.00033424,3]
[310297809,1704463963465,-500.0,0.00033424,3]
[310297810,1704463963474,-908.56,0.00033424,3]
[310297811,1704463963486,-500.0,0.00033424,3]
[310297812,1704463963495,-500.0,0.00033424,3]
[310297813,1704463963504,-5038.11,0.00033424,3]
[310297814,1704463963514,-884.22,0.00033424,3]
[310297815,1704463963525,-880.69,0.00033424,3]
[310297816,1704463963534,-500.0,0.00033424,3]
[310297817,1704463963543,-828.3,0.00033424,3]
[310297818,1704463963553,-500.0,0.00033424,3]
[310297819,1704463963562,-1954.72,0.00033424,3]
[310297820,1704463963571,-500.0,0.00033424,3]
[310297821,1704463963580,-285.43125943,0.00033424,3]
[310297822,1704463963591,-500.0,0.00033424,3]
[310297823,1704463963601,-964.87,0.00033424,3]
[310297824,1704463963610,-500.0,0.00033424,3]
[310297825,1704463963619,-1145.56,0.00033424,3]
[310297826,1704463963630,-1200.04,0.00033424,3]
[310297827,1704463963639,-794.58,0.00033424,3]
[310297828,1704463963649,-855.41,0.00033424,3]
[310297829,1704463963660,-534.82,0.00033424,3]
[310297830,1704463963670,-773.85,0.00033424,3]
[310297831,1704463963679,-1238.16,0.00033424,3]
[310297832,1704463963688,-500.0,0.00033424,3]
[310297833,1704463963697,-500.0,0.00033424,3]
[310297834,1704463963706,-3690.73,0.00033424,3]
[310297835,1704463963715,-500.0,0.00033424,3]
[310297836,1704463963724,-692.03,0.00033424,3]
[310297837,1704463963734,-559.53,0.00033424,3]
[310297838,1704463963744,-199.59327032,0.00033424,3]
[310297839,1704463963753,-500.0,0.00033424,3]
[310297840,1704463963763,-500.0,0.00033424,3]
[310297841,1704463963772,-500.0,0.00033424,3]
[310297842,1704463963781,-654.46,0.00033424,3]
[310297843,1704463963791,-954.52,0.00033424,3]
[310297844,1704463963801,-763.63,0.00033424,3]
[310297845,1704463963811,-1216.82,0.00033424,3]
[310297846,1704463963821,-876.69,0.00033424,3]
[310297847,1704463963833,-511.23,0.00033424,3]
[310297848,1704463963843,-309.93424942,0.00033424,3]
[310297849,1704463963854,-1777.29,0.00033424,3]
[310297850,1704463963864,-813.3,0.00033424,3]
[310297851,1704463963873,-1082.13,0.00033424,3]
[310297852,1704463963883,-677.81,0.00033424,3]
[310297853,1704463963893,-1325.23,0.00033424,3]
[310297854,1704463963903,-500.0,0.00033424,3]
[310297855,1704463963914,-3298.71,0.00033424,3]
[310297856,1704463963923,-500.0,0.00033424,3]
[310297857,1704463963933,-798.97,0.00033424,3]
[310297858,1704463963942,-500.0,0.00033424,3]
[310297859,1704463963952,-500.0,0.00033424,3]
[310297860,1704463963963,-900.8,0.00033424,3]
[310297861,1704463963974,-500.0,0.00033424,3]
[310297862,1704463963984,-1067.2,0.00033424,3]
[310297863,1704463963993,-2016.59,0.00033424,3]
[310297864,1704463964002,-645.44499285,0.00033424,3]
[310297865,1704463964011,-752.23,0.00033424,3]
[310297866,1704463964021,-811.52,0.00033424,3]
[310297867,1704463964030,-1251.67,0.00033424,3]
[310297868,1704463964039,-500.0,0.00033424,3]
[310297869,1704463964053,-8654.29,0.00033424,3]
[310297870,1704463964063,-909.25,0.00033424,3]
[310297871,1704463964073,-952.02,0.00033424,3]
[310297872,1704463964085,-500.0,0.00033424,3]
[310297873,1704463964094,-963.43,0.00033424,3]
[310297874,1704463964104,-2290.16,0.00033424,3]
[310297875,1704463964114,-500.0,0.00033424,3]
[310297876,1704463964123,-511.88,0.00033424,3]
[310297877,1704463964133,-1293.97,0.00033424,3]
[310297878,1704463964143,-5023.74,0.00033424,3]
[310297879,1704463964153,-960.97,0.00033424,3]
[310297880,1704463964163,-1316.73,0.00033424,3]
[310297881,1704463964172,-500.0,0.00033424,3]
[310297882,1704463964182,-2888.44,0.00033424,3]
[310297883,1704463964191,-780.49,0.00033424,3]
[310297884,1704463964201,-213.57,0.00033424,3]
[310297885,1704463964211,-873.53,0.00033424,3]
[310297886,1704463964220,-840.85,0.00033424,3]
[310297887,1704463964229,-500.0,0.00033424,3]
[310297888,1704463964239,-552.42,0.00033424,3]
[310297889,1704463964249,-17362.55,0.00033424,3]
[310297890,1704463964259,-2346.84,0.00033424,3]
[310297891,1704463964269,-4809.34,0.00033424,3]
[310297892,1704463964279,-607.5,0.00033424,3]
[310297893,1704463964289,-619.58,0.00033424,3]
[310297894,1704463964299,-539.06,0.00033424,3]
[310297895,1704463964309,-500.0,0.00033424,3]
[310297896,1704463964320,-500.0,0.00033424,3]
[310297897,1704463964330,-500.0,0.00033424,3]
[310297898,1704463964342,-9463.24,0.00033424,3]
[310297899,1704463964351,-4907.15,0.00033424,3]
[310297900,1704463964361,-4324.26,0.00033424,3]
[310297901,1704463964371,-2724.92,0.00033424,3]
[310297902,1704463964380,-11882.1,0.00033424,3]
[310297903,1704463964390,-746.12,0.00033424,3]
[310297904,1704463964401,-845.63,0.00033424,3]
[310297905,1704463964410,-500.0,0.00033424,3]
[310297906,1704463964420,-500.0,0.00033424,3]
[310297907,1704463964429,-3292.08,0.00033424,3]
[310297908,1704463964439,-500.0,0.00033424,3]
[310297909,1704463964450,-918.77,0.00033424,3]
[310297910,1704463964460,-644.83,0.00033424,3]
[310297911,1704463964478,-500.0,0.00033424,3]
[310297912,1704463964488,-500.0,0.00033424,3]
[310297913,1704463964498,-1395.08,0.00033424,3]
[310297914,1704463964509,-3344.35,0.00033424,3]
[310297915,1704463964519,-613.87,0.00033424,3]
[310297916,1704463964529,-1259.17,0.00033424,3]
[310297917,1704463964539,-500.0,0.00033424,3]
[310297918,1704463964549,-2954.54,0.00033424,3]
[310297919,1704463964559,-2366.41,0.00033424,3]
[310297920,1704463964568,-737.12,0.00033424,3]
[310297921,1704463964578,-500.0,0.00033424,3]
[310297922,1704463964591,-540.64196752,0.00033424,3]
[310297923,1704463964601,-5440.99,0.00033424,3]
[310297924,1704463964611,-3361.08,0.00033424,3]
[310297925,1704463964620,-1558.45,0.00033424,3]
[310297926,1704463964631,-500.0,0.00033424,3]
[310297927,1704463964644,-1062.83,0.00033424,3]
[310297928,1704463964658,-812.59,0.00033424,3]
[310297929,1704463964668,-646.75,0.00033424,3]
[310297930,1704463964678,-1323.29,0.00033424,3]
[310297931,1704463964689,-500.0,0.00033424,3]
[310297932,1704463964699,-16516.01,0.00033424,3]
[310297933,1704463964709,-747.13,0.00033424,3]
[310297934,1704463964719,-8220.31,0.00033424,3]
[310297935,1704463964729,-217.25716186,0.00033424,3]
[310297936,1704463964739,-1218.24,0.00033424,3]
[310297937,1704463964749,-678.9,0.00033424,3]
[310297938,1704463964760,-509.33,0.00033424,3]
[310297939,1704463964771,-625.64,0.00033424,3]
[310297940,1704463964781,-1093.85,0.00033424,3]
[310297941,1704463964793,-500.0,0.00033424,3]
[310297942,1704463964803,-1229.71,0.00033424,3]
[310297943,1704463964814,-528.93,0.00033424,3]
[310297944,1704463964824,-500.0,0.00033424,3]
[310297945,1704463964834,-500.0,0.00033424,3]
[310297946,1704463964844,-622.93846486,0.00033424,3]
[310297947,1704463964853,-696.27,0.00033424,3]
[310297948,1704463964863,-500.0,0.00033424,3]
[310297949,1704463964873,-1228.93,0.00033424,3]
[310297950,1704463964882,-500.0,0.00033424,3]
[310297951,1704463964893,-906.38,0.00033424,3]
[310297952,1704463964903,-500.0,0.00033424,3]
[310297953,1704463964914,-1060.36,0.00033424,3]
[310297954,1704463964924,-1479.47,0.00033424,3]
[310297955,1704463964934,-1559.68,0.00033424,3]